Cogmind - Beta 15 @@@ ROGUE MODE // 2025.05.24 @ 19:42:00 Player: Andru7428 Result: Destroyed by H-88 Terminator with Heavy Machine Gun Performance ------------- Evolutions (8) 4000 Regions Visited (28) 5600 Robots Destroyed (257) 1285 Value Destroyed (8476) 8476 Prototype IDs (40) 800 Alien Tech Used (0) 0 Bonus (5200) 5200 TOTAL SCORE: 25361 Bonus ------- High Alert Combat Kills 256 Follower Combat Kills 3291 Entered Garrisons 200 Network Hubs Disabled 400 Registered with UFD 300 Met Optimus in HQ 500 Built Enhanced Grunts 300 Friendly Fire -47 Cogmind --------- Core Integrity 0/1450 Matter 172/300 Energy 70/100 System Corruption 2% Temperature Cool (9) Movement Core (50) Location -2/Research Parts ------- > --- POWER (2) -------- (None) > --- PROPULSION (5) --- (None) > --- UTILITY (13) ----- (None) > --- WEAPON (3) ------- (None) > --- INVENTORY (5) ---- Advanced Sensor Array Advanced Actuator Array Heavy Shock Bomb Launcher Centrium Greatsword Peak State ------------ > --- POWER ------------ Micro Fission Core Micro Antimatter Reactor > --- PROPULSION ------- Combat Antigrav System Combat Antigrav System Combat Antigrav System Antigrav Array > --- UTILITY ---------- Advanced Heat Sink Coolant Network Medium Storage Unit Enhanced Optical Array Advanced Signal Interpreter Advanced Melee Analysis Suite Cloaking Device Improved Utility Shielding Improved Medium Armor Plating Hacking Suite Improved Hacking Suite Improved Hacking Suite > --- WEAPON ----------- Enhanced Force Lance Enhanced Force Lance Enhanced Force Lance > --- INVENTORY -------- Improved Gyrokinetic Inverter Improved Linear Gravjet Combat Antigrav System Advanced Sensor Array Stasis Canceller Improved Reaction Control System Improved Hardlight Generator Heavy Shock Bomb Launcher Tactical Quantum Warhead [Rating: 147] Favorites ----------- Power Light Fission Core Engine Cooled Ion Engine Power Core Light Fission Core Reactor Micro Antimatter Reactor Propulsion Combat Airjet Treads Light Treads Leg Aluminum Leg Hover Unit Combat Airjet Utility Centrium Medium Armor Plating Device Advanced Sensor Array Storage Medium Storage Unit Processor Enhanced Optical Array Hackware Improved Hacking Suite Protection Centrium Medium Armor Plating Weapon Cooled Pulse Rifle Energy Gun Cooled Pulse Rifle Energy Cannon Neutron Cannon Ballistic Gun Enhanced Autogun Ballistic Cannon Light Cannon Launcher Long-range Missile Launcher Impact Weapon Heavy Hammer Slashing Weapon Power Sword Piercing Weapon Enhanced Force Lance Build | -11 -10 -9 -9 -9 -8 -8 -8 -8 -8 -6 -6 -6 -6 -6 -6 -6 -5 -5 -5 -4 -4 -4 -4 -4 -4 -4 -3 -2 ------- Run | Yrd Mat Mat Min Exi Min Mat Sto Rec Scr Fac Was Fac Ext Cet Arc Hub Fac Was Fac Fac Was Fac Gar Fac Upp Upp Res Res Slots Evolved 16 | . . 2 . . . 2 . . . 4 . . . . . . 2 . . 2 . . . . . . 2 2 Power 1 | . . . . . . . . . . . . . . . . . . . . . . . . . . . . 1 Propulsion 3 | . . 1 . . . . . . . 1 . . . . . . . . . . . . . . . . 1 . Utility 11 | . . 1 . . . 1 . . . 3 . . . . . . 2 . . 2 . . . . . . 1 1 Weapon 1 | . . . . . . 1 . . . . . . . . . . . . . . . . . . . . . . Parts Attached 273 | 6 13 24 5 . 2 14 18 . 9 23 . 29 9 4 5 1 22 2 21 22 . 3 3 9 5 . 16 8 Power 22 | 1 1 3 . . . 1 1 . 2 1 . 1 . . . . 2 . . 4 . . 1 . . . 3 1 Engine 10 | 1 1 3 . . . 1 1 . 1 1 . . . . . . . . . 1 . . . . . . . . Core 9 | . . . . . . . . . 1 . . 1 . . . . 2 . . 3 . . 1 . . . 1 . Reactor 3 | . . . . . . . . . . . . . . . . . . . . . . . . . . . 2 1 Propulsion 54 | 2 4 9 . . 1 2 9 . . 4 . 10 . . . 1 3 . 1 3 . 1 . 2 . . 1 1 Treads 24 | 2 2 9 . . 1 2 8 . . . . . . . . . . . . . . . . . . . . . Leg 2 | . 2 . . . . . . . . . . . . . . . . . . . . . . . . . . . Wheel . | . . . . . . . . . . . . . . . . . . . . . . . . . . . . . Hover 28 | . . . . . . . 1 . . 4 . 10 . . . 1 3 . 1 3 . 1 . 2 . . 1 1 Flight . | . . . . . . . . . . . . . . . . . . . . . . . . . . . . . Utility 143 | 1 5 6 3 . 1 3 3 . 6 12 . 17 6 3 5 . 13 1 18 14 . 2 2 5 4 . 10 3 Device 64 | . 2 1 2 . 1 1 . . 3 3 . 6 3 1 2 . 6 . 10 8 . 1 1 4 1 . 5 3 Storage 10 | 1 2 1 . . . . . . 2 1 . . . . . . 1 . 1 . . . . . . . 1 . Processor 14 | . . . . . . . . . . 3 . 1 . . . . 2 . 4 4 . . . . . . . . Hackware 20 | . . . . . . . . . . 2 . 6 . . 1 . 4 . 3 1 . . . 1 . . 2 . Protection 35 | . 1 4 1 . . 2 3 . 1 3 . 4 3 2 2 . . 1 . 1 . 1 1 . 3 . 2 . Artifact . | . . . . . . . . . . . . . . . . . . . . . . . . . . . . . Weapon 54 | 2 3 6 2 . . 8 5 . 1 6 . 1 3 1 . . 4 1 2 1 . . . 2 1 . 2 3 Energy Gun 14 | 1 1 4 1 . . 4 1 . 1 1 . . . . . . . . . . . . . . . . . . Energy Cannon 6 | . . 1 . . . . . . . 1 . . 1 . . . 2 . . 1 . . . . . . . . Ballistic Gun 5 | 1 . . . . . . 2 . . 2 . . . . . . . . . . . . . . . . . . Ballistic Cannon 7 | . 2 . . . . 4 . . . . . . 1 . . . . . . . . . . . . . . . Launcher 5 | . . . 1 . . . 1 . . . . . 1 . . . . . . . . . . . . . 2 . Special Weapon . | . . . . . . . . . . . . . . . . . . . . . . . . . . . . . Impact Weapon 2 | . . . . . . . 1 . . . . . . . . . 1 . . . . . . . . . . . Slashing Weapon 11 | . . 1 . . . . . . . 2 . 1 . 1 . . 1 1 . . . . . 1 . . . 3 Piercing Weapon 4 | . . . . . . . . . . . . . . . . . . . 2 . . . . 1 1 . . . Special Melee Weapon . | . . . . . . . . . . . . . . . . . . . . . . . . . . . . . Unidentified Prototypes 27 | . . 4 . . . 2 6 . . 3 . 1 . 1 . 1 1 . 1 2 . . . 1 . . 2 2 Corrupted Parts 1 | . . . . . . . . . . . . . . . . 1 . . . . . . . . . . . . System Corruption 3 | . . . . . . . . . . . . . . . . 3 . . . . . . . . . . . . Parts Lost 85 | . 8 2 4 . . 1 . . . 11 . 11 2 . . . 5 . 2 12 . 2 7 . 1 . 4 13 Power 12 | . 2 . . . . 1 . . . 1 . 1 . . . . 1 . . 2 . . 1 . . . 1 2 Propulsion 14 | . 2 . 2 . . . . . . 3 . 1 . . . . . . . 1 . . 2 . . . 1 2 Utility 43 | . 1 2 1 . . . . . . 5 . 8 1 . . . 3 . 1 6 . 2 4 . 1 . 1 7 Weapon 16 | . 3 . 1 . . . . . . 2 . 1 1 . . . 1 . 1 3 . . . . . . 1 2 Highest Loss Streak 8 | . 7 1 4 . . 1 . . . 6 . 5 1 . . . 2 . 1 4 . 2 4 . 1 . 2 8 To Critical Strikes . | . . . . . . . . . . . . . . . . . . . . . . . . . . . . . Average Backups 10 | 4 9 14 13 13 14 13 14 15 17 13 9 9 4 4 5 5 8 9 9 8 8 9 8 5 8 8 8 7 Power . | . . . 1 1 1 . 1 1 1 . 1 . 1 1 1 1 . . . 1 2 2 1 1 1 1 . . Propulsion 2 | 2 4 1 . . . . 3 5 5 4 3 3 3 2 2 2 2 2 2 3 3 2 2 1 2 2 . 2 Utility 3 | . 3 3 2 3 4 4 2 2 4 3 3 2 . . 1 1 3 5 4 3 3 4 3 2 3 3 4 1 Weapon 3 | 1 1 8 9 9 9 8 7 7 7 4 2 1 . 1 1 1 2 2 1 . . . . 1 2 2 2 2 Tool/Special . | . . . . . . . . . . . . . . . . . . . . . . . . . . . . . Unused Backups 50 | . 6 12 . . . 3 6 1 2 7 . 4 1 1 . . 1 . 3 2 . . . . . . . 1 Power 7 | . . 2 . . . . 1 . . 2 . . 1 . . . . . . 1 . . . . . . . . Propulsion 10 | . 5 1 . . . . . 1 . . . 1 . . . . 1 . . 1 . . . . . . . . Utility 17 | . 1 4 . . . . 2 . 1 3 . 2 . . . . . . 3 . . . . . . . . 1 Weapon 15 | . . 5 . . . 3 3 . . 2 . 1 . 1 . . . . . . . . . . . . . . Tool/Special 1 | . . . . . . . . . 1 . . . . . . . . . . . . . . . . . . . Average Slot Usage (%) 92 | . 89 96 92 88 99 99 99 100 100 83 93 91 87 93 92 93 96 100 99 88 89 88 76 74 80 78 86 80 Engine 4 | . 7 9 11 11 11 9 9 9 8 3 6 4 . . . . . . . . . . . . . . . . Core 2 | . . . . . . . . . . 2 . 1 6 6 6 6 4 5 5 4 5 5 5 5 5 5 3 2 Treads 10 | . 15 31 26 22 32 27 26 27 27 8 . . . . . . . . . . . . . . . . . . Hover 13 | . . . . . . . . . . 13 26 25 26 26 26 26 22 23 23 20 21 21 21 21 21 21 22 16 Device 7 | . 6 8 10 11 11 5 . . 1 9 13 12 13 13 11 6 7 5 5 8 5 5 5 8 11 10 8 14 Storage 6 | . 18 11 11 11 11 9 9 9 9 5 6 5 . . . . 4 5 5 5 5 5 5 5 5 5 4 3 Processor 7 | . . . . . . . . . . 10 13 11 6 6 6 6 7 11 14 17 21 20 15 15 15 15 14 10 Hackware 5 | . . . . . . . . . . 6 6 5 6 6 7 13 16 17 13 10 10 9 5 5 5 5 11 12 Protection 12 | . . 13 11 11 11 21 26 27 25 3 6 6 18 18 20 20 11 11 10 8 15 14 11 4 5 5 8 3 Energy Gun 7 | . 7 18 21 22 21 11 22 18 18 5 . . . . . . . . . . . . . . . . . . Ballistic Cannon 1 | . 12 2 . . . 15 . . . . . . . 1 . . . . . . . . . . . . . . Impact Weapon 1 | . . . . . . . 4 9 9 1 . . . . . . . 5 1 . . . . . . . . . Slashing Weapon 4 | . . . . . . . . . . 5 13 13 7 11 13 13 10 10 6 3 . . . 4 4 5 3 1 Piercing Weapon 2 | . . . . . . . . . . . . . . . . . . . 8 6 5 5 5 4 5 5 6 10 Peak Build Rating 147 | 6 9 19 20 20 25 36 38 35 44 64 64 74 74 86 85 86 97 93 103 116 113 114 104 100 108 101 128 147 Average Rating 63 | 4 7 17 19 20 23 31 32 35 38 52 64 67 68 80 81 84 90 91 98 102 113 112 95 87 100 101 114 123 On Entrance 64 | . 6 7 19 20 20 25 33 35 35 44 64 64 71 71 82 85 86 91 91 103 113 113 97 75 94 101 101 128 Naked Turns 19 | . . . . . . . . . . . . . . . . . . . . . . . . . . . . 19 Heaviest Build 78 | 12 46 40 41 40 40 55 55 52 77 78 33 38 38 42 38 35 47 46 56 59 54 54 59 48 69 53 62 70 Greatest Support 76 | 40 40 60 60 40 60 60 66 66 66 66 34 48 39 42 42 44 48 47 52 60 60 60 64 64 64 64 76 74 Greatest Overweight (x) 5 | . 2 . . . . . 2 . 1 5 . 1 1 . . . 1 . 1 1 . . . . 1 . . . Average Overweight (x) . | . . . . . . . . . . . . . . . . . . . . . . . . . . . . . Largest Inventory Capacity 20 | 8 15 15 15 15 15 15 15 15 20 20 10 10 5 5 5 5 10 10 10 10 10 10 10 10 10 10 10 10 Average Capacity 12 | 7 12 15 15 15 15 15 15 15 18 14 10 9 5 5 5 5 9 10 10 10 10 10 10 10 10 10 10 9 Most Carried 20 | 8 15 15 15 14 15 15 15 15 20 20 10 10 5 5 5 5 10 10 10 10 8 10 9 10 10 8 10 10 Average Carried 11 | 5 9 14 13 13 14 13 14 14 17 14 10 9 4 4 4 5 9 9 9 8 8 9 8 5 8 8 8 7 Final Capacity 20 | 8 15 15 15 15 15 15 15 15 20 10 10 5 5 5 5 5 10 10 10 10 10 10 10 10 10 10 10 5 Final Carried 20 | 7 13 15 13 14 15 15 15 15 20 10 10 5 5 5 5 5 10 10 10 8 8 9 6 7 8 8 9 5 Class Distribution -------------------- 30% | Mutant 12% | Scout 10% | Hacker-Scout 7% | Scavenger-Mutant 7% | Machinist-Scout 5% | Hacker-Mutant 4% | Machinist-Mutant 4% | Commander-Scout Dominant Class ---------------- Mutant | -10/Materials Scavenger-Mutant | -9/Materials Mutant | -9/Mines Mutant | -9/Exiles Mutant | -8/Mines Tank | -8/Materials Scavenger-Tank | -8/Storage Mutant | -8/Recycling Mutant | -8/Scraptown Mutant | -6/Factory Scout | -6/Waste Scout | -6/Factory Commander-Scout | -6/Extension Commander-Scout | -6/Cetus Commander-Mutant | -6/Archives Commander-Mutant | -6/Hub_04(d) Hacker-Mutant | -5/Factory Hacker-Mutant | -5/Waste Machinist-Scout | -5/Factory Machinist-Scout | -4/Factory Machinist-Mutant | -4/Waste Machinist-Mutant | -4/Factory Machinist-Mutant | -4/Garrison Scout | -4/Factory Machinist-Ninja | -4/Upper Caves Machinist-Ninja | -4/Upper Caves Hacker-Scout | -3/Research Hacker-Gladiator | -2/Research Resources | -11 -10 -9 -9 -9 -8 -8 -8 -8 -8 -6 -6 -6 -6 -6 -6 -6 -5 -5 -5 -4 -4 -4 -4 -4 -4 -4 -3 -2 ----------- Run | Yrd Mat Mat Min Exi Min Mat Sto Rec Scr Fac Was Fac Ext Cet Arc Hub Fac Was Fac Fac Was Fac Gar Fac Upp Upp Res Res Matter Collected 7314 | 284 380 610 142 26 101 428 410 . 100 682 . 466 513 152 91 63 444 209 570 575 . 198 101 . 277 . 412 80 Remotely 144 | . . . . . . 144 . . . . . . . . . . . . . . . . . . . . . . Salvage Created 10256 | 112 464 1208 321 . 277 507 715 . . 1191 . 603 400 35 309 . 604 . 398 1966 . 198 282 . . . 514 152 Parts 589 | 13 33 76 28 . 19 24 46 . . 35 . 41 28 1 23 . 31 . 14 105 . 11 18 . . . 35 8 Haulers Intercepted 15 | . 2 4 . . . 1 5 . . 1 . . . . . . 1 . 1 . . . . . . . . . Recyclers Shooed 6 | . . . . . . 1 1 . . 2 . . . . . . 2 . . . . . . . . . . . Parts Field Recycled . | . . . . . . . . . . . . . . . . . . . . . . . . . . . . . Retrieved Matter . | . . . . . . . . . . . . . . . . . . . . . . . . . . . . . Parts Self-Destructed . | . . . . . . . . . . . . . . . . . . . . . . . . . . . . . Prevented . | . . . . . . . . . . . . . . . . . . . . . . . . . . . . . Kills | -11 -10 -9 -9 -9 -8 -8 -8 -8 -8 -6 -6 -6 -6 -6 -6 -6 -5 -5 -5 -4 -4 -4 -4 -4 -4 -4 -3 -2 ------- Run | Yrd Mat Mat Min Exi Min Mat Sto Rec Scr Fac Was Fac Ext Cet Arc Hub Fac Was Fac Fac Was Fac Gar Fac Upp Upp Res Res Combat Hostiles Destroyed 171 | . 13 27 13 . 10 7 8 . . 13 . 8 6 . . . 8 . 8 29 . 1 9 . . . 9 2 Melee 74 | . . . 1 . . . . . . . . 8 4 . . . 8 . 4 29 . 1 9 . . . 8 2 Guns 61 | . 10 19 11 . 6 1 8 . . 6 . . . . . . . . . . . . . . . . . . Cannons 16 | . 3 7 . . . 6 . . . . . . . . . . . . . . . . . . . . . . AOE 18 | . . . 1 . 4 . . . . 6 . . 2 . . . . . 4 . . . . . . . 1 . Classes Destroyed 18 | 2 5 4 1 . . 1 . . . 2 . . 2 . . . . . . . . . . . . . 1 . Worker 12 | 1 . 1 . . 1 . 3 . . 2 . 3 . . . . . . . 1 . . . . . . . . Builder 9 | . . 1 . . . . . . . 1 . 5 2 . . . . . . . . . . . . . . . Tunneler 7 | 4 . . 1 . . . . . . 1 . . . . . . . . 1 . . . . . . . . . Hauler 15 | . 2 4 . . . 1 5 . . 1 . . . . . . 1 . 1 . . . . . . . . . Recycler 18 | . . 1 1 . . 4 1 . . 4 . 1 . . . . 1 . . 5 . . . . . . . . Mechanic 1 | . . 1 . . . . . . . . . . . . . . . . . . . . . . . . . . Operator 14 | . 1 . . . . . 2 . . 1 . . . . 9 . 1 . . . . . . . . . . . Watcher 10 | . 2 1 . . . . . . . 1 . . 1 1 . . . . 1 . . 3 . . . . . . Swarmer 61 | . 6 9 7 . 7 . 1 . . . . 4 . . . . 3 . 3 13 . . 8 . . . . . Cutter 3 | . . . . . . . . . . . . . . . . . . . . . . . . . . . 3 . Saboteur 1 | . . . . . . . . . . . . . 1 . . . . . . . . . . . . . . . Grunt 52 | . 7 10 5 . 3 4 4 . . 9 . 1 3 . . . 2 . 3 1 . . . . . . . . Brawler 1 | . . . . . . . . . . 1 . . . . . . . . . . . . . . . . . . Duelist 2 | . . . 1 . . . . . . 1 . . . . . . . . . . . . . . . . . . Sentry 22 | . . 8 . . . 1 3 . . 1 . . 1 . . . . . 1 4 . 1 1 . . . 1 . Hunter 7 | . . . . . . 2 . . . . . . . . . . . . 1 2 . . . . . . . 2 Programmer 21 | . . . . . . . . . . 1 . 3 . . . . 3 . . 9 . . . . . . 5 . Behemoth 1 | . . . . . . . . . . . . . 1 . . . . . . . . . . . . . . . Best Kill Streak 13 | 5 7 6 4 . 4 3 5 . . 10 . 4 2 1 8 . 2 . 4 13 . 1 5 . . . 4 2 Combat Bots Only 13 | . 6 6 4 . 4 2 4 . . 5 . 4 2 . . . 2 . 3 13 . 1 5 . . . 4 2 Max Kills in Single Turn 6 | 1 2 2 2 . 3 2 1 . . 6 . 1 2 1 1 . 1 . 2 1 . 1 1 . . . 1 1 Gunslinging 1 | . 1 1 1 . . . . . . . . . . . . . . . . . . . . . . . . . Exploded 3 | . . . 1 . 3 . . . . 2 . . 2 . . . . . 2 . . . . . . . 1 . Melee 1 | . . . 1 . . . . . . . . 1 1 . . . 1 . 1 1 . 1 1 . . . 1 1 Uniques/NPCs Destroyed . | . . . . . . . . . . . . . . . . . . . . . . . . . . . . . Combat | -11 -10 -9 -9 -9 -8 -8 -8 -8 -8 -6 -6 -6 -6 -6 -6 -6 -5 -5 -5 -4 -4 -4 -4 -4 -4 -4 -3 -2 -------- Run | Yrd Mat Mat Min Exi Min Mat Sto Rec Scr Fac Was Fac Ext Cet Arc Hub Fac Was Fac Fac Was Fac Gar Fac Upp Upp Res Res Hostile Shots Fired 1868 | . 87 123 65 . 26 20 45 . . 196 . 192 84 8 . . 125 . 31 351 . 22 131 . 14 21 78 249 Missed 687 | . 29 33 10 . 8 3 16 . . 72 . 88 30 2 . . 42 . 9 134 . 5 53 . 6 8 32 107 Hits 1181 | . 58 90 55 . 18 17 29 . . 124 . 104 54 6 . . 83 . 22 217 . 17 78 . 8 13 46 142 Melee 34 | . . . 4 . . . . . . 5 . . 1 . . . . . . 1 . 10 . . . . 7 6 Projectile 1147 | . 58 90 51 . 18 17 29 . . 119 . 104 53 6 . . 83 . 22 216 . 7 78 . 8 13 39 136 AOE 6 | . . . . . . . . . . . . . 1 . . . 2 . . . . . . . . . 3 . Critical Strikes 57 | . 2 3 2 . . . 2 . . 10 . . 6 . . . 6 . . 4 . 4 . . 1 1 5 11 Part Disruptions 2 | . . . . . . . . . . . . . . . . . . . . 1 . . . . 1 . . . Actively Blocked 1 | . . . . . . . . . . . . . . . . . . . . 1 . . . . . . . . Damage Taken 22745 | . 854 1050 775 . 225 284 490 . . 2283 . 2200 887 145 . 47 1831 . 612 4328 . 710 1338 . 188 259 1158 3081 Core 4160 | . 178 146 108 . 18 47 44 . . 346 . 353 63 59 . . 165 . 90 668 . 130 176 . 12 53 46 1458 Absorbed by Shields 85 | . . . . . . . . . . . . . 73 12 . . . . . . . . . . . . . . Redirected to Shielding 403 | . . . . . . . . . . . . 154 36 . . . . . . 102 . . . . . . 96 15 Ignored by Resistances 44 | . . . . . . . . . . . . . 44 . . . . . . . . . . . . . . . Regen/Repaired (Parts) 4807 | . . 77 . . . . 285 . . 21 . . . . . . 1630 . 187 1713 . 521 . 373 . . . . Core Remaining (%) 53 | 100 28 . . . 32 . . . 83 . . . . . . 3 . . 74 . . . . . . 9 96 . Volleys Fired 333 | 8 59 88 35 . 16 20 28 . . 44 . . 6 13 . . 7 . 3 1 . . . . . . 4 1 Largest 3 | 2 2 2 2 . 2 3 3 . . 3 . . 1 1 . . 1 . 1 1 . . . . . . 1 1 Hottest 112 | 70 70 112 112 . 101 111 60 . . 75 . . 43 37 . . 90 . 43 90 . . . . . . 46 20 Shots Fired 687 | 16 117 176 67 . 32 60 83 1 . 100 . . 5 12 . . 9 . 3 1 . . . . . . 4 1 Gun 493 | 16 75 122 64 . 31 9 83 1 . 92 . . . . . . . . . . . . . . . . . . Cannon 169 | . 42 54 . . . 51 . . . . . . . 12 . . 9 . . 1 . . . . . . . . Launcher 25 | . . . 3 . 1 . . . . 8 . . 5 . . . . . 3 . . . . . . . 4 1 Special . | . . . . . . . . . . . . . . . . . . . . . . . . . . . . . Kinetic 261 | 8 79 54 . . . 51 . . . 57 . . . 12 . . . . . . . . . . . . . . Thermal 379 | 8 38 120 60 . 15 9 83 1 . 35 . . . . . . 9 . . 1 . . . . . . . . Explosive 21 | . . . 3 . 1 . . . . 8 . . 5 . . . . . 3 . . . . . . . . 1 Electromagnetic 26 | . . 2 4 . 16 . . . . . . . . . . . . . . . . . . . . . 4 . Robot Hit Streak 31 | 5 10 23 10 . 9 16 31 4 . 14 . . 2 3 . . 1 . 2 3 . . . . . . . . Robot Miss Streak 10 | 2 4 4 10 . 5 3 2 . . 4 . . 1 2 . . 1 . . . . . . . . . . . Penetration Max . | . . . . . . . . . . . . . . . . . . . . . . . . . . . . . Secondary Targets 8 | . 4 1 2 . . . 1 . . . . . . . . . . . . . . . . . . . . . Max Gunslinging Chain 1 | . 1 1 1 . . . 1 . . . . . . . . . . . . . . . . . . . . . Shots Hit Robots 702 | 8 70 118 38 . 22 39 57 2 . 82 . 26 18 6 17 1 45 7 13 80 . 4 16 1 . . 23 9 Core Hits 361 | 5 26 45 19 . 18 20 28 . . 53 . 11 17 4 6 . 17 . 15 39 . 4 9 . . . 12 13 Critical Kills . | . . . . . . . . . . . . . . . . . . . . . . . . . . . . . Critical Parts Destroyed 2 | . . . . . . . . . . 2 . . . . . . . . . . . . . . . . . . Critical Strikes 59 | 1 . 10 3 . . 2 2 . . 3 . 1 2 . 1 . 5 . . 12 . 1 3 . . . 11 2 Burn 16 | 1 . 10 3 . . . 2 . . . . . . . . . . . . . . . . . . . . . Blast 2 | . . . . . . 2 . . . . . . . . . . . . . . . . . . . . . . Smash 2 | . . . . . . . . . . 2 . . . . . . . . . . . . . . . . . . Sever 16 | . . . . . . . . . . 1 . 1 2 . 1 . 5 . . 1 . . . . . . 3 2 Impale 23 | . . . . . . . . . . . . . . . . . . . . 11 . 1 3 . . . 8 . Melee Attacks 831 | . . 4 . . . . 12 1 . 68 . 160 53 . 20 8 115 7 63 151 . 20 28 1 27 4 46 43 Impact 26 | . . . . . . . 12 1 . 8 . . . . . . 4 . 1 . . . . . . . . . Slashing 531 | . . 4 . . . . . . . 60 . 160 53 . 20 8 111 7 32 29 . . . . 22 4 12 9 Piercing 274 | . . . . . . . . . . . . . . . . . . . 30 122 . 20 28 1 5 . 34 34 Sneak Attacks 47 | . . . . . . . 1 1 . 6 . 12 4 . 9 . 5 . 3 6 . . . . . . . . Combat Hostiles 1 | . . . . . . . . . . . . 1 . . . . . . . . . . . . . . . . Follow-up Attacks 44 | . . . . . . . . . . 1 . 3 1 . 2 . 8 1 3 15 . . . . . . 8 2 Damage Inflicted 25599 | 101 961 2068 947 . 575 880 1220 102 . 3696 . 1687 1564 170 1085 30 1727 130 1277 4002 . 251 762 55 . . 1280 1029 Guns 5721 | 101 619 1510 629 . 367 131 1103 18 . 1243 . . . . . . . . . . . . . . . . . . Cannons 1833 | . 334 558 . . . 735 . . . . . . . 170 . . . . . 36 . . . . . . . . Explosions 3921 | . . . 282 . 187 . . . . 1537 . . 725 . . . . . 647 . . . . . . . 123 420 Melee 14007 | . . . . . . . 91 84 . 913 . 1687 839 . 1085 30 1727 130 630 3966 . 251 762 55 . . 1157 600 Ramming 117 | . 8 . 36 . 21 14 26 . . 3 . . . . . . . . . . . . . . . . . 9 Kinetic 2879 | 50 649 558 . . . 735 . . . 717 . . . 170 . . . . . . . . . . . . . . Thermal 5405 | 51 304 1475 605 . 173 131 1103 18 . 1357 . . . . . . . . 152 36 . . . . . . . . Explosive 2749 | . . . 282 . 167 . . . . 706 . . 725 . . . . . 449 . . . . . . . . 420 Electromagnetic 442 | . . 35 24 . 214 . . . . . . . . . . . . . 46 . . . . . . . 123 . Impact 442 | . . . . . . . 91 84 . 223 . . . . . . . . 44 . . . . . . . . . Slashing 7687 | . . . . . . . . . . 690 . 1687 839 . 1085 30 1727 130 229 569 . . . . . . 209 492 Piercing 5878 | . . . . . . . . . . . . . . . . . . . 357 3397 . 251 762 55 . . 948 108 Highest Corruption 30 | . . 3 3 3 3 . 1 1 . 2 11 26 27 27 27 20 15 15 15 21 30 30 30 30 30 24 6 2 Average Corruption 12 | . . 3 3 3 3 . 1 1 . 1 6 13 26 27 20 16 10 15 10 10 27 30 30 30 24 24 3 2 Corruption Purged 25 | . . . . . . . . . . . . . . . 12 . . . 5 2 . . . . 6 . . . Corruption Blocked . | . . . . . . . . . . . . . . . . . . . . . . . . . . . . . Effects 586 | . . 14 20 6 11 . 2 2 . 20 1 97 70 12 14 9 57 10 74 57 4 27 16 19 31 4 9 . Message Errors 144 | . . 5 5 1 5 . 1 . . 8 1 29 12 3 1 2 13 2 11 15 . 9 5 2 10 1 3 . Matter Fused 149 | . . 3 6 2 2 . 1 . . 6 . 21 17 5 5 2 17 4 17 16 1 5 2 5 11 . 1 . Heat Flow Errors 72 | . . 1 2 1 . . . 1 . 1 . 10 12 1 1 . 9 1 11 7 1 4 . 3 4 . 2 . Energy Discharges 67 | . . 2 1 . 1 . . . . 3 . 13 4 1 1 1 4 1 17 7 1 1 2 3 3 1 . . Parts Rejected 10 | . . . . . . . . . . . . 1 2 . . . 1 . 1 2 . 1 2 . . . . . Parts Fused 6 | . . . . . . . . . . . . 2 . . . . 2 . . . . 2 . . . . . . Data Loss (minor) 60 | . . 1 2 2 1 . . . . 1 . 10 8 1 4 . 5 2 10 3 . 2 2 3 2 . 1 . Data Loss (major) 25 | . . . 2 . 1 . . . . . . 5 2 . 1 1 2 . 2 2 1 1 2 . 1 . 2 . Misfires 6 | . . 1 . . 1 . . 1 . . . . . . . . 2 . 1 . . . . . . . . . Alerts 14 | . . 1 2 . . . . . . 1 . 3 1 . 1 1 1 . 1 . . 1 . 1 . . . . Misdirections 30 | . . . . . . . . . . . . 3 11 . . 2 1 . 2 5 . 1 1 2 . 2 . . Weapon Failures 3 | . . . . . . . . . . . . . 1 1 . . . . 1 . . . . . . . . . Overload Shots 1 | . . . . . . . . . . 1 . . . . . . . . . . . . . . . . . . Overflow Damage 2438 | . 13 3 6 . . 3 71 . . 576 . 427 167 . 345 . 162 . 84 378 . . 64 . . . 139 . Projectiles 19 | . 13 3 . . . 3 . . . . . . . . . . . . . . . . . . . . . . Explosions 226 | . . . 6 . . . . . . 167 . . 10 . . . . . 43 . . . . . . . . . Melee 2193 | . . . . . . . 71 . . 409 . 427 157 . 345 . 162 . 41 378 . . 64 . . . 139 . Knockbacks 18 | . 2 5 . . 1 7 . 1 . 2 . . . . . . . . . . . . . . . . . . Impact 4 | . . . . . 1 . . 1 . 2 . . . . . . . . . . . . . . . . . . Kinetic 12 | . 1 4 . . . 7 . . . . . . . . . . . . . . . . . . . . . . Secondary 2 | . 1 1 . . . . . . . . . . . . . . . . . . . . . . . . . . Self-Inflicted Damage 643 | . . . 142 . 17 . . . . 227 . . 103 . . . . . 95 . . . . . . . . 59 Shots 11 | . . . 3 . 1 . . . . 3 . . 1 . . . . . 2 . . . . . . . . 1 Rammed 21 | . 2 . 5 . 4 3 4 . . 1 . . . . . . . . . . . . . . . . . 2 Targets Rammed 26 | . 3 . 7 . 5 3 5 . . 1 . . . . . . . . . . . . . . . . . 2 Kicked . | . . . . . . . . . . . . . . . . . . . . . . . . . . . . . Crushed 5 | . 1 . 2 . 1 . 1 . . . . . . . . . . . . . . . . . . . . . Highest Temperature 502 | 18 54 487 502 104 126 119 202 222 . 232 . 272 268 94 120 . 245 145 278 251 194 226 . 231 388 4 277 . Average Temperature 91 | 9 22 115 189 59 45 40 46 112 . 71 . 104 92 54 69 . 73 76 100 97 102 112 . 97 146 4 45 . Received Heat Transfer 4054 | . 393 315 165 . 81 108 243 . . 843 . 330 302 . . . 195 . 81 243 . 18 90 . 398 69 9 171 Effects 18 | . . 9 3 . . . . . . . . 1 2 . . . . . . . . 1 . . 2 . . . Shutdowns 4 | . . 1 2 . . . . . . . . . . . . . . . . . . . . . 1 . . . Energy Bleed 5 | . . 3 1 . . . . . . . . . . . . . . . . . . 1 . . . . . . Interference 4 | . . 1 . . . . . . . . . 1 2 . . . . . . . . . . . . . . . Matter Decay 1 | . . 1 . . . . . . . . . . . . . . . . . . . . . . . . . . Short Circuit 1 | . . . . . . . . . . . . . . . . . . . . . . . . . 1 . . . Damage (minor) 3 | . . 3 . . . . . . . . . . . . . . . . . . . . . . . . . . Siege Activations . | . . . . . . . . . . . . . . . . . . . . . . . . . . . . . Martial Activations . | . . . . . . . . . . . . . . . . . . . . . . . . . . . . . Shielding Activations . | . . . . . . . . . . . . . . . . . . . . . . . . . . . . . Robots Disrupted 1 | . . . . . . . . . . . . . . . . . . . 1 . . . . . . . . . Combat Hostiles 1 | . . . . . . . . . . . . . . . . . . . 1 . . . . . . . . . Robots Corrupted 1 | . . . . . . . . . . 1 . . . . . . . . . . . . . . . . . . Combat Hostiles . | . . . . . . . . . . . . . . . . . . . . . . . . . . . . . Parts Fried 2 | . . . . . . . . . . 2 . . . . . . . . . . . . . . . . . . Impact Corruptions 5 | . . . . . . . 1 . . 4 . . . . . . . . . . . . . . . . . . Robots Melted 2 | . . 1 . . . . . . . 1 . . . . . . . . . . . . . . . . . . Combat Hostiles 2 | . . 1 . . . . . . . 1 . . . . . . . . . . . . . . . . . . Parts Melted 22 | 1 . 9 . . 1 . 4 . . 4 . . 1 . . . . . . 2 . . . . . . . . Heat Transferred 10906 | 222 710 3922 1517 . 333 259 2294 37 . 1475 . . . . . . . . 100 37 . . . . . . . . Parts Sabotaged 2 | . . . . . . . . . . . . . 2 . . . . . . . . . . . . . . . Parts Stolen . | . . . . . . . . . . . . . . . . . . . . . . . . . . . . . Parts Stripped . | . . . . . . . . . . . . . . . . . . . . . . . . . . . . . Power Chain Reactions 1 | . . . . . 1 . . . . . . . . . . . . . . . . . . . . . . . Alert | -11 -10 -9 -9 -9 -8 -8 -8 -8 -8 -6 -6 -6 -6 -6 -6 -6 -5 -5 -5 -4 -4 -4 -4 -4 -4 -4 -3 -2 ------- Run | Yrd Mat Mat Min Exi Min Mat Sto Rec Scr Fac Was Fac Ext Cet Arc Hub Fac Was Fac Fac Was Fac Gar Fac Upp Upp Res Res Maximum Alert Level 3 | . . 1 . . . . . . . 1 . 2 3 2 1 1 2 . 2 2 . . 1 . . . . 1 Low Security (%) 59 | 100 100 55 100 . 100 100 100 100 . 42 100 24 12 . 2 89 17 100 66 35 100 100 57 100 . . 100 91 Level 1 25 | . . 44 . . . . . . . 57 . 41 21 . 97 10 80 . 24 9 . . 42 . . . . 8 Level 2 13 | . . . . . . . . . . . . 34 35 100 . . 1 . 9 55 . . . . . . . . Level 3 1 | . . . . . . . . . . . . . 30 . . . . . . . . . . . . . . . Level 4 . | . . . . . . . . . . . . . . . . . . . . . . . . . . . . . Level 5 . | . . . . . . . . . . . . . . . . . . . . . . . . . . . . . High Security . | . . . . . . . . . . . . . . . . . . . . . . . . . . . . . Max Security . | . . . . . . . . . . . . . . . . . . . . . . . . . . . . . Peak Influence 873 | 10 137 314 179 . 137 104 139 17 . 315 96 557 873 578 380 328 514 80 501 533 186 113 338 183 . . 84 341 Initial 464 | . . . 89 . . . 5 . . . 96 60 228 464 183 91 160 80 . 7 186 109 28 177 . . 13 30 Average 177 | 1 34 160 49 . 37 22 31 1 . 157 92 303 504 512 321 67 259 31 146 287 174 70 139 97 . . 27 79 Influence Increases 12972 | 25 423 838 374 . 242 230 425 17 . 746 . 1374 1585 164 287 480 1268 . 1669 1180 . 232 380 30 15 30 313 645 Destroy 0b10 Robot/C 5280 | . 260 540 260 . 200 140 160 . . 260 . 320 800 80 80 140 480 . 520 620 . 20 180 . . . 180 40 Destroy 0b10 Robot/NC 480 | 25 25 45 10 . 5 25 55 . . 55 . 50 20 5 45 10 40 . 20 30 . 15 . . . . . . Destroy Leader 1056 | . 58 160 40 . 30 52 50 . . 54 . 80 104 . . 32 86 . 114 130 . 16 10 . . . 30 10 Allied During Kill 1496 | . . . . . . . . . . . . 8 533 73 125 182 193 . 361 21 . . . . . . . . Successful Hack 808 | . 19 28 . . . 7 7 17 . 62 . 83 23 . . 36 97 . 186 48 . 110 . 15 . . 15 55 Select Force Hacks 50 | . . . . . . . . . . . . . . . . 50 . . . . . . . . . . . . Disable Machine 720 | . 45 30 15 . . . 135 . . 120 . 30 15 . 30 15 30 . 165 60 . 15 . . . . . 15 Anti-Garrison Action 200 | . . . . . . . . . . . . 200 . . . . . . . . . . . . . . . . Destroy Structure 977 | . 1 5 19 . 7 6 3 . . 60 . 93 60 6 7 15 132 . 228 76 . 26 10 . . . 28 195 Partial Spotted 105 | . . . . . . . . . . 15 . . . . . . 15 . 30 15 . . . 15 . . . 15 Lose Combat Pursuer 1800 | . 15 30 30 . . . 15 . . 120 . 510 30 . . . 195 . 45 180 . 30 180 . 15 30 60 315 Influence Decreases 12649 | 25 423 608 604 . 242 216 439 17 . 470 190 994 1220 537 485 412 1367 229 1654 662 377 347 83 351 32 10 279 376 Entered New Map 2337 | . . . 141 . . . 9 . . . 180 26 238 367 275 169 168 149 . 8 347 47 13 161 8 . 7 24 Time Decay 6426 | 25 331 534 274 . 242 117 425 17 . 370 10 562 482 130 170 55 583 80 510 517 30 270 . 190 24 10 246 222 Search Patrol Dispatched 150 | . . . . . . . . . . . . 150 . . . . . . . . . . . . . . . . Lost Part 763 | . 30 20 40 . . 10 . . . 100 . 110 20 . . . 50 . 20 117 . 20 70 . . . 26 130 Lost Ally 909 | . . . . . . . . . . . . 146 180 40 40 60 60 . 353 20 . 10 . . . . . . Purge Threat 2064 | . 62 54 149 . . 89 5 . . . . . 300 . . 128 506 . 771 . . . . . . . . . Squads Dispatched 108 | . 3 5 . . . 1 3 . . 14 . 17 7 . . 2 12 . 14 19 . 2 . . . . 5 4 Investigation 56 | . 1 1 . . . . 1 . . 10 . 10 4 . . 2 8 . 8 8 . . . . . . 1 2 Extermination 23 | . . . . . . . . . . 2 . 5 . . . . 3 . 4 5 . 1 . . . . 2 1 Reinforcement 24 | . 2 4 . . . 1 1 . . 2 . 2 2 . . . 1 . 2 3 . 1 . . . . 2 1 Assault 1 | . . . . . . . . . . . . . 1 . . . . . . . . . . . . . . . Garrison 4 | . . . . . . . 1 . . . . . . . . . . . . 3 . . . . . . . . Intercept . | . . . . . . . . . . . . . . . . . . . . . . . . . . . . . Searches Triggered 1 | . . . . . . . . . . . . 1 . . . . . . . . . . . . . . . . Construction Impeded 3 | . . . . . . . . . . 1 . . 2 . . . . . . . . . . . . . . . Haulers Reinforced 1 | . . . . . . . . . . . . . . . . . . . 1 . . . . . . . . . Active Scanning Responses . | . . . . . . . . . . . . . . . . . . . . . . . . . . . . . Cargo Convoy Interrupts . | . . . . . . . . . . . . . . . . . . . . . . . . . . . . . Stealth | -11 -10 -9 -9 -9 -8 -8 -8 -8 -8 -6 -6 -6 -6 -6 -6 -6 -5 -5 -5 -4 -4 -4 -4 -4 -4 -4 -3 -2 --------- Run | Yrd Mat Mat Min Exi Min Mat Sto Rec Scr Fac Was Fac Ext Cet Arc Hub Fac Was Fac Fac Was Fac Gar Fac Upp Upp Res Res Distress Signals 28 | . 2 2 1 . . 2 1 1 . 1 . 1 4 . . . 4 . 2 5 . 1 . 1 . . . . Communications Jammed . | . . . . . . . . . . . . . . . . . . . . . . . . . . . . . Distress Signals . | . . . . . . . . . . . . . . . . . . . . . . . . . . . . . Times Spotted 502 | . 21 35 15 . 10 15 32 1 . 29 3 42 44 4 6 8 51 1 22 59 3 13 16 2 1 7 17 45 Peak Tracking Total 19 | . 4 7 4 . 4 4 4 1 . 6 3 14 9 4 2 7 8 1 5 18 3 4 7 2 1 8 7 19 Tactical Retreats 59 | . 1 2 2 . . . 1 . . 5 . 12 2 . . . 8 . 2 8 . 2 4 . 1 1 1 7 Traps | -11 -10 -9 -9 -9 -8 -8 -8 -8 -8 -6 -6 -6 -6 -6 -6 -6 -5 -5 -5 -4 -4 -4 -4 -4 -4 -4 -3 -2 ------- Run | Yrd Mat Mat Min Exi Min Mat Sto Rec Scr Fac Was Fac Ext Cet Arc Hub Fac Was Fac Fac Was Fac Gar Fac Upp Upp Res Res Traps Triggered 46 | . 6 1 . . . . 5 . . 5 . 6 2 . . 3 4 . 3 5 . 1 2 . 1 . 1 1 Indirectly . | . . . . . . . . . . . . . . . . . . . . . . . . . . . . . Trap Hack Attempts . | . . . . . . . . . . . . . . . . . . . . . . . . . . . . . Triggered . | . . . . . . . . . . . . . . . . . . . . . . . . . . . . . Disarmed . | . . . . . . . . . . . . . . . . . . . . . . . . . . . . . Reprogrammed . | . . . . . . . . . . . . . . . . . . . . . . . . . . . . . Reused . | . . . . . . . . . . . . . . . . . . . . . . . . . . . . . Traps Extracted . | . . . . . . . . . . . . . . . . . . . . . . . . . . . . . Installed . | . . . . . . . . . . . . . . . . . . . . . . . . . . . . . Triggered . | . . . . . . . . . . . . . . . . . . . . . . . . . . . . . Machines | -11 -10 -9 -9 -9 -8 -8 -8 -8 -8 -6 -6 -6 -6 -6 -6 -6 -5 -5 -5 -4 -4 -4 -4 -4 -4 -4 -3 -2 ---------- Run | Yrd Mat Mat Min Exi Min Mat Sto Rec Scr Fac Was Fac Ext Cet Arc Hub Fac Was Fac Fac Was Fac Gar Fac Upp Upp Res Res Machines Disabled 49 | . 3 3 1 . . . 9 . . 8 . 2 1 . 2 1 2 . 11 4 . 1 . . . . . 1 Max in Single Turn 5 | . 1 1 1 . . . 1 . . 5 . 1 1 . . . . . 4 1 . 1 . . . . . 1 Garrison Access 9 | . . . . . . 1 1 . . . . 1 . . . . 2 . 2 1 . . . . . . 1 . Network Hub 2 | . . . . . . . . . . . . . . . . 2 . . . . . . . . . . . . Energy Cycler 1 | . . . . . . . . . . . . . 1 . . . . . . . . . . . . . . . Machines Repaired . | . . . . . . . . . . . . . . . . . . . . . . . . . . . . . Machines Dismantled . | . . . . . . . . . . . . . . . . . . . . . . . . . . . . . Machines Sabotaged 1 | . . . . . . . . . . . . . . . . 1 . . . . . . . . . . . . Overloaded Fab Kills . | . . . . . . . . . . . . . . . . . . . . . . . . . . . . . Hacking | -11 -10 -9 -9 -9 -8 -8 -8 -8 -8 -6 -6 -6 -6 -6 -6 -6 -5 -5 -5 -4 -4 -4 -4 -4 -4 -4 -3 -2 --------- Run | Yrd Mat Mat Min Exi Min Mat Sto Rec Scr Fac Was Fac Ext Cet Arc Hub Fac Was Fac Fac Was Fac Gar Fac Upp Upp Res Res Machines Accessed 169 | . 6 7 1 1 1 3 10 1 6 24 . 19 12 1 . 6 20 . 24 14 . 4 . 2 . . 3 4 Terminals 93 | . 6 6 1 . 1 1 7 1 . 11 . 9 10 1 . 6 8 . 13 5 . 2 . . . . 2 3 Fabricators 15 | . . . . . . . . . . 3 . 4 . . . . 2 . 3 2 . . . 1 . . . . Repair Stations 13 | . . 1 . . . . 2 . . 2 . 1 . . . . 3 . 1 1 . 1 . 1 . . . . Recycling Units 29 | . . . . . . 1 . . . 7 . 4 2 . . . 5 . 4 5 . . . . . . . 1 Scanalyzers 1 | . . . . . . . . . . . . . . . . . . . 1 . . . . . . . . . Garrison Access 11 | . . . . . . 1 1 . . 1 . 1 . . . . 2 . 2 1 . 1 . . . . 1 . Total Hacks 594 | . 23 23 2 3 1 6 26 5 16 50 . 57 25 1 . 14 96 . 123 54 . 19 . 13 . . 5 32 Successful 318 | . 14 14 1 3 . 5 15 3 16 23 . 27 11 . . 6 51 . 56 34 . 9 . 9 . . 2 19 Failed 275 | . 9 9 1 . 1 1 11 2 . 27 . 30 14 1 . 8 44 . 67 20 . 10 . 4 . . 3 13 Catastrophic 54 | . . . 1 . . . . . . 10 . 8 2 1 . 1 10 . 14 3 . 1 . . . . 1 2 Database Lockouts 1 | . . . . . . . . . . . . . . . . . 1 . . . . . . . . . . . Manual 278 | . 23 13 2 . 1 . 11 4 . 29 . 33 8 1 . 5 37 . 62 25 . 2 . . . . 2 20 Terminals 370 | . 23 16 2 . 1 3 17 5 . 30 . 24 23 1 . 14 53 . 92 27 . 5 . . . . 4 30 Fabricators 53 | . . . . . . . . . . 5 . 17 . . . . 3 . 14 9 . . . 5 . . . . Repair Stations 88 | . . 7 . . . . 8 . . 3 . 5 . . . . 31 . 5 9 . 12 . 8 . . . . Recycling Units 43 | . . . . . . 2 . . . 11 . 9 2 . . . 5 . 6 6 . . . . . . . 2 Scanalyzers 3 | . . . . . . . . . . . . . . . . . . . 3 . . . . . . . . . Garrison Access 18 | . . . . . . 1 1 . . 1 . 2 . . . . 4 . 3 3 . 2 . . . . 1 . Terminal Hacks 123 | . 6 3 1 3 . 2 8 3 16 5 . 4 7 . . 3 11 . 27 9 . 1 . . . . 1 13 Record 16 | . . . . 3 . . . . 11 . . . . . . . . . . 1 . . . . . . 1 . Part Schematic 4 | . . . . . . . . . . 2 . . . . . . 2 . . . . . . . . . . . Robot Analysis 5 | . 1 . . . . . . . 4 . . . . . . . . . . . . . . . . . . . Prototype ID Bank 4 | . . . . . . . 1 3 . . . . . . . . . . . . . . . . . . . . Open Door 5 | . . . . . . . 1 . . . . . 4 . . . . . . . . . . . . . . . Level Access Points 1 | . . . . . . . . . . . . . . . . . . . 1 . . . . . . . . . Branch Access Points 6 | . . 1 . . . . . . . 1 . 1 . . . . 1 . 1 . . . . . . . . 1 Machine Index 2 | . . . . . . . . . . . . . . . . . . . . . . 1 . . . . . 1 Terminal Index 5 | . . . . . . . . . . . . 1 . . . 1 1 . 1 1 . . . . . . . . Repair Station Index 1 | . . . . . . . . . . . . . . . . . . . . 1 . . . . . . . . Recycling Unit Index 2 | . . . . . . . . . . . . 1 . . . . . . 1 . . . . . . . . . Scanalyzer Index 1 | . . . . . . . . . . . . . . . . . . . 1 . . . . . . . . . Garrison Index 3 | . . . . . . . . . . . . . . . . . 1 . 1 . . . . . . . . 1 Alert Level 4 | . . . . . . . 1 . . . . . . . . . . . 3 . . . . . . . . . Unreport Threat 23 | . 3 1 1 . . 2 2 . . . . . 2 . . 1 5 . 6 . . . . . . . . . Locate Traps 15 | . 1 1 . . . . 3 . . 2 . . 1 . . . 1 . 3 2 . . . . . . . 1 Dispatch Records 1 | . . . . . . . . . . . . . . . . . . . . 1 . . . . . . . . Maintenance Status 1 | . . . . . . . . . . . . . . . . . . . 1 . . . . . . . . . Security Status 2 | . . . . . . . . . . . . 1 . . . . . . . . . . . . . . . 1 Recall Investigation 6 | . . . . . . . . . . . . . . . . . . . 3 3 . . . . . . . . Recall Extermination 4 | . . . . . . . . . . . . . . . . . . . 3 . . . . . . . . 1 Recall Reinforcements 2 | . 1 . . . . . . . . . . . . . . . . . . . . . . . . . . 1 Registered Components 6 | . . . . . . . . . . . . . . . . . . . 1 . . . . . . . . 5 Registered Prototypes 1 | . . . . . . . . . . . . . . . . . . . 1 . . . . . . . . . Zone Layout 2 | . . . . . . . . . . . . . . . . 1 . . . . . . . . . . . 1 Proto ID Catalog 1 | . . . . . . . . . 1 . . . . . . . . . . . . . . . . . . . Fabricator Hacks 31 | . . . . . . . . . . 3 . 9 . . . . 2 . 9 6 . . . 2 . . . . Network Status 8 | . . . . . . . . . . 2 . 1 . . . . . . 2 3 . . . . . . . . Load Schematic 14 | . . . . . . . . . . 1 . 5 . . . . 1 . 4 2 . . . 1 . . . . Build 9 | . . . . . . . . . . . . 3 . . . . 1 . 3 1 . . . 1 . . . . Repair Station Hacks 55 | . . 4 . . . . 4 . . 2 . 2 . . . . 20 . 2 8 . 6 . 7 . . . . Scan Component 31 | . . 2 . . . . 3 . . 1 . 2 . . . . 11 . 1 4 . 3 . 4 . . . . Repair 24 | . . 2 . . . . 1 . . 1 . . . . . . 9 . 1 4 . 3 . 3 . . . . Recycling Unit Hacks 4 | . . . . . . 2 . . . 1 . . . . . . . . . . . . . . . . . 1 Process 1 | . . . . . . . . . . . . . . . . . . . . . . . . . . . . 1 Report Inventory 1 | . . . . . . . . . . 1 . . . . . . . . . . . . . . . . . . Retrieve Components 2 | . . . . . . 2 . . . . . . . . . . . . . . . . . . . . . . Scanalyzer 2 | . . . . . . . . . . . . . . . . . . . 2 . . . . . . . . . Insert Component 1 | . . . . . . . . . . . . . . . . . . . 1 . . . . . . . . . Analyze 1 | . . . . . . . . . . . . . . . . . . . 1 . . . . . . . . . Garrison Access Hacks 9 | . . . . . . 1 1 . . . . . . . . . 2 . 2 1 . 1 . . . . 1 . Unlock Access 1 | . . . . . . . . . . . . . . . . . . . . . . 1 . . . . . . Seal Access 8 | . . . . . . 1 1 . . . . . . . . . 2 . 2 1 . . . . . . 1 . Unauthorized Hacks 94 | . 8 7 . . . . 2 . . 12 . 12 4 . . 3 16 . 14 10 . 1 . . . . . 5 Terminals 57 | . 8 7 . . . . 2 . . 3 . 5 2 . . 3 10 . 8 4 . 1 . . . . . 4 Track 2 | . . . . . . . . . . . . . . . . . 1 . . . . . . . . . . 1 Assimilate 2 | . . . . . . . . . . . . . . . . . . . 1 . . 1 . . . . . . Botnet 31 | . 3 1 . . . . 2 . . 2 . 5 2 . . 1 6 . 4 4 . . . . . . . 1 Disrupt 1 | . . . . . . . . . . . . . . . . . . . . . . . . . . . . 1 Operators 3 | . . . . . . . . . . . . . . . . . 1 . 1 . . . . . . . . 1 Skim 15 | . 5 6 . . . . . . . . . . . . . . 2 . 2 . . . . . . . . . Sabotage 2 | . . . . . . . . . . . . . . . . 2 . . . . . . . . . . . . Search 1 | . . . . . . . . . . 1 . . . . . . . . . . . . . . . . . . Fabricators 8 | . . . . . . . . . . 1 . 3 . . . . 1 . 2 1 . . . . . . . . Prioritize 2 | . . . . . . . . . . . . 1 . . . . . . 1 . . . . . . . . . Liberate 1 | . . . . . . . . . . . . 1 . . . . . . . . . . . . . . . . Recompile 5 | . . . . . . . . . . 1 . 1 . . . . 1 . 1 1 . . . . . . . . Repair Stations 1 | . . . . . . . . . . 1 . . . . . . . . . . . . . . . . . . Mechanics 1 | . . . . . . . . . . 1 . . . . . . . . . . . . . . . . . . Recycling Units 27 | . . . . . . . . . . 7 . 3 2 . . . 5 . 4 5 . . . . . . . 1 Fedlink 24 | . . . . . . . . . . 7 . 3 . . . . 5 . 4 4 . . . . . . . 1 Scrapoids 3 | . . . . . . . . . . . . . 2 . . . . . . 1 . . . . . . . . Scanalyzers . | . . . . . . . . . . . . . . . . . . . . . . . . . . . . . Garrison Access 1 | . . . . . . . . . . . . 1 . . . . . . . . . . . . . . . . Jam 1 | . . . . . . . . . . . . 1 . . . . . . . . . . . . . . . . Data Cores Recovered 3 | . . . . . . . 2 . . . . . . . . . . . 1 . . . . . . . . . Used 1 | . . . . . . . . . . . . . . . . . . . 1 . . . . . . . . . Hacking Detections 109 | . 5 7 1 . 1 1 8 1 . 15 . 16 6 1 . 4 10 . 15 8 . 3 . 1 . . 2 4 Full Trace Events 13 | . . . . . . . 1 . . . . 3 1 . . . 2 . 3 2 . . . . . . . 1 Feedback Events . | . . . . . . . . . . . . . . . . . . . . . . . . . . . . . Feedback Blocked 2 | . . . . . . . . . . . . 1 . . . . 1 . . . . . . . . . . . Robot Schematics Acquired . | . . . . . . . . . . . . . . . . . . . . . . . . . . . . . Robots Built . | . . . . . . . . . . . . . . . . . . . . . . . . . . . . . Authchips . | . . . . . . . . . . . . . . . . . . . . . . . . . . . . . Time . | . . . . . . . . . . . . . . . . . . . . . . . . . . . . . Total Robot Build Rating . | . . . . . . . . . . . . . . . . . . . . . . . . . . . . . Part Schematics Acquired 5 | . . . . . . . . . . 2 . . . . . . 2 . 1 . . . . . . . . . Parts Built 17 | . . . . . . . . . . . . 6 . . . . 2 . 5 2 . . . 2 . . . . Authchips 5 | . . . . . . . . . . . . 2 . . . . 1 . 1 . . . . 1 . . . . Time 528 | . . . . . . . . . . . . 237 . . . . 31 . 154 42 . . . 64 . . . . Total Part Build Rating 110 | . . . . . . . . . . . . 30 . . . . 10 . 38 16 . . . 16 . . . . Parts Repaired 24 | . . 2 . . . . 1 . . 1 . . . . . . 9 . 1 4 . 3 . 3 . . . . Time 1428 | . . 52 . . . . 53 . . 50 . . . . . . 543 . 47 374 . 102 . 207 . . . . Parts Recycled . | . . . . . . . . . . . . . . . . . . . . . . . . . . . . . Recycled Matter 15 | . . . . . . . . . . . . . . . . . . . . . . . . . . . . 15 Retrieved Matter . | . . . . . . . . . . . . . . . . . . . . . . . . . . . . . Retrieved Components 9 | . . . . . . 9 . . . . . . . . . . . . . . . . . . . . . . Parts Scanalyzed 1 | . . . . . . . . . . . . . . . . . . . 1 . . . . . . . . . Part Schematics Acquired 1 | . . . . . . . . . . . . . . . . . . . 1 . . . . . . . . . Parts Damaged . | . . . . . . . . . . . . . . . . . . . . . . . . . . . . . Bothacking | -11 -10 -9 -9 -9 -8 -8 -8 -8 -8 -6 -6 -6 -6 -6 -6 -6 -5 -5 -5 -4 -4 -4 -4 -4 -4 -4 -3 -2 ------------ Run | Yrd Mat Mat Min Exi Min Mat Sto Rec Scr Fac Was Fac Ext Cet Arc Hub Fac Was Fac Fac Was Fac Gar Fac Upp Upp Res Res Used RIF Installer . | . . . . . . . . . . . . . . . . . . . . . . . . . . . . . Robots Hacked . | . . . . . . . . . . . . . . . . . . . . . . . . . . . . . Non-combat . | . . . . . . . . . . . . . . . . . . . . . . . . . . . . . Combat . | . . . . . . . . . . . . . . . . . . . . . . . . . . . . . Robot Hacks Applied . | . . . . . . . . . . . . . . . . . . . . . . . . . . . . . Relay Couplers Released . | . . . . . . . . . . . . . . . . . . . . . . . . . . . . . Fabnet Peak Effective % . | . . . . . . . . . . . . . . . . . . . . . . . . . . . . . Robots Rewired 7 | . . . . . . . . . . . . . 7 . . . . . . . . . . . . . . . Allies Hacked 2 | . . . . . . . . . . . . 1 . . . . . . . . . 1 . . . . . . Hacks Repelled . | . . . . . . . . . . . . . . . . . . . . . . . . . . . . . Allies | -11 -10 -9 -9 -9 -8 -8 -8 -8 -8 -6 -6 -6 -6 -6 -6 -6 -5 -5 -5 -4 -4 -4 -4 -4 -4 -4 -3 -2 -------- Run | Yrd Mat Mat Min Exi Min Mat Sto Rec Scr Fac Was Fac Ext Cet Arc Hub Fac Was Fac Fac Was Fac Gar Fac Upp Upp Res Res Total Allies 65 | . . . . . . . . . . . 1 10 22 5 . . . 20 1 5 . 1 . . . . . . Largest Group 20 | . . . . . . . . . . . 1 3 14 14 14 11 4 20 20 5 . 1 . . . . . . Highest-Rated Group 841 | . . . . . . . . . . . 31 87 532 841 841 625 384 781 778 235 . 45 . . . . . . Highest-Rated Ally 159 | . . . . . . . . . . . 31 41 159 136 136 96 96 50 50 47 . 45 . . . . . . Total Orders 2 | . . . . . . . . . . . . . . . . 2 . . . . . . . . . . . . STAY 2 | . . . . . . . . . . . . . . . . 2 . . . . . . . . . . . . Ally Attacks 674 | . . . . . . . . . . . 2 61 277 17 33 35 95 24 121 9 . . . . . . . . Total Damage 15735 | . . . . . . . . . . . 20 1379 4975 331 652 1479 3078 668 2994 159 . . . . . . . . Kills 110 | . . . . . . . . . . . . 10 37 4 4 11 21 1 20 2 . . . . . . . . Allies Corrupted 2 | . . . . . . . . . . . . . . . . 1 1 . . . . . . . . . . . Allies Melted 4 | . . . . . . . . 1 . . . 2 . . . . . . 1 . . . . . . . . . Intel | -11 -10 -9 -9 -9 -8 -8 -8 -8 -8 -6 -6 -6 -6 -6 -6 -6 -5 -5 -5 -4 -4 -4 -4 -4 -4 -4 -3 -2 ------- Run | Yrd Mat Mat Min Exi Min Mat Sto Rec Scr Fac Was Fac Ext Cet Arc Hub Fac Was Fac Fac Was Fac Gar Fac Upp Upp Res Res Active Infowar (turns) 16145 | . 532 . . . . . . . 186 1472 30 2293 1252 261 340 155 1805 225 2019 2141 65 587 300 386 785 48 822 441 Optics 14558 | . . . . . . . . . . 616 30 2293 1239 261 340 155 1805 225 2019 2141 65 587 300 386 785 48 822 441 Sensors 12751 | . . . . . . . . . 186 1417 30 2075 1241 261 340 155 1377 225 1973 1203 . 85 1 368 772 48 741 253 IFF 2953 | . . . . . . . . . . 5 . 545 1251 261 44 . . . . 336 30 481 . . . . . . Terrain 3944 | . 167 . . . . . . . . 778 30 1588 . . . . 410 . . 971 . . . . . . . . Structural 23 | . . . . . . . . . . . . 20 . . . . 3 . . . . . . . . . . . Seismic 365 | . 365 . . . . . . . . . . . . . . . . . . . . . . . . . . . Triangulation 305 | . . . . . . . . . . . . 305 . . . . . . . . . . . . . . . . Cloaking 314 | . . . . . . . . . . . . . . . . . . . . . . . . 1 115 44 1 153 Jamming 17 | . . . . . . . . . . . . . . . . . . . . 17 . . . . . . . . ECM 89 | . . . . . . . . . . . . . . . . . . . 1 . . . . 14 74 . . . Robot Analysis Total 5 | . 1 . . . . . . . 4 . . . . . . . . . . . . . . . . . . . Derelict Logs Recovered 2 | . . . 2 . . . . . . . . . . . . . . . . . . . . . . . . . Drone Launches . | . . . . . . . . . . . . . . . . . . . . . . . . . . . . . Drone Recoveries . | . . . . . . . . . . . . . . . . . . . . . . . . . . . . . Exploration | -11 -10 -9 -9 -9 -8 -8 -8 -8 -8 -6 -6 -6 -6 -6 -6 -6 -5 -5 -5 -4 -4 -4 -4 -4 -4 -4 -3 -2 ------------- Run | Yrd Mat Mat Min Exi Min Mat Sto Rec Scr Fac Was Fac Ext Cet Arc Hub Fac Was Fac Fac Was Fac Gar Fac Upp Upp Res Res Turns Passed 25593 | 150 1167 1832 1044 246 793 503 1484 238 2507 1652 30 2293 1252 261 340 155 1805 225 2019 2141 65 587 300 386 785 48 822 463 Spaces Moved 20329 | 71 483 611 572 154 448 179 750 147 1300 1714 72 2730 1066 115 308 169 1789 217 2200 1858 85 540 210 432 696 51 859 503 Core 28 | 5 1 . . . . . . . . . . . . . . . . . . . . . . . . . . 22 Treads 4899 | 66 305 611 572 154 448 179 750 147 1300 367 . . . . . . . . . . . . . . . . . . Legs 177 | . 177 . . . . . . . . . . . . . . . . . . . . . . . . . . . Wheels . | . . . . . . . . . . . . . . . . . . . . . . . . . . . . . Hover 15225 | . . . . . . . . . . 1347 72 2730 1066 115 308 169 1789 217 2200 1858 85 540 210 432 696 51 859 481 Flight . | . . . . . . . . . . . . . . . . . . . . . . . . . . . . . Fastest Speed 40 | 50 150 160 160 160 160 163 145 145 145 40 40 40 45 45 54 54 54 62 62 71 71 71 71 67 67 71 59 50 Average Speed 88 | 152 187 160 160 160 162 163 155 145 190 64 40 57 45 51 54 54 60 62 70 73 71 71 71 67 70 71 69 64 Slowest Speed 350 | 160 260 160 160 160 163 163 320 145 225 350 40 144 108 54 54 63 144 62 144 147 71 71 71 71 141 71 71 65 Overloaded Moves . | . . . . . . . . . . . . . . . . . . . . . . . . . . . . . Propulsion Burnouts . | . . . . . . . . . . . . . . . . . . . . . . . . . . . . . Robots Hopped . | . . . . . . . . . . . . . . . . . . . . . . . . . . . . . Potential Cave-ins 9 | . . . . . . . . . . . . 6 . . . . . . 1 . . . . . . . . 2 Cave-ins Triggered 2 | . . . . . . . . . . . . 2 . . . . . . . . . . . . . . . . Exploration Rate (%) 54 | 4 96 52 93 50 97 16 92 49 89 44 89 50 93 64 99 19 49 92 56 47 80 12 31 9 67 10 15 13 Regions Visited 28 Branch Regions 12 Pre-discovered Areas 5 | . 1 1 . 1 . . . . 1 1 . . . . . . . . . . . . . . . . . . Known Exits Taken 16 | . 1 1 1 . 1 1 1 1 1 . . 1 . . . 1 . . 1 . . 1 . 1 1 1 1 . Unknown Exits Taken 5 | 1 . . . 1 . . . . . . . . 1 1 1 . . . . . . . . . . . . . Scrap Searched 16 | . . . 1 . 1 . . . 12 . . . . . . . . . . . . . . . 2 . . . Spaces Dug 431 | . . 4 . . . . 1 . . 42 . 102 24 . 1 5 39 . 48 37 . 13 5 . 22 4 14 70 Terrain Destroyed 588 | . . 4 22 . 7 4 1 . . 59 . 102 98 1 1 5 39 . 80 37 . 13 5 . 22 4 14 70 Melee 349 | . . 4 . . . . 1 . . 42 . 102 12 . 1 5 32 . 32 37 . 13 5 . 22 4 14 23 Projectile 12 | . . . . . . 4 . . . . . . . 1 . . 7 . . . . . . . . . . . AOE 227 | . . . 22 . 7 . . . . 17 . . 86 . . . . . 48 . . . . . . . . 47 Terrain Rammed . | . . . . . . . . . . . . . . . . . . . . . . . . . . . . . Walls Destroyed . | . . . . . . . . . . . . . . . . . . . . . . . . . . . . . Machines Disabled . | . . . . . . . . . . . . . . . . . . . . . . . . . . . . . Actions | -11 -10 -9 -9 -9 -8 -8 -8 -8 -8 -6 -6 -6 -6 -6 -6 -6 -5 -5 -5 -4 -4 -4 -4 -4 -4 -4 -3 -2 --------- Run | Yrd Mat Mat Min Exi Min Mat Sto Rec Scr Fac Was Fac Ext Cet Arc Hub Fac Was Fac Fac Was Fac Gar Fac Upp Upp Res Res Total 25953 | 95 623 1294 629 154 475 342 986 171 1331 2081 72 3231 1748 303 455 221 2340 293 2563 2372 88 698 301 524 942 54 995 572 Wait 3493 | 2 31 505 2 . 3 106 107 22 1 169 1 275 456 159 124 31 367 63 241 316 3 123 54 67 204 . 56 5 Move 20304 | 70 482 610 571 153 447 178 749 146 1299 1714 71 2728 1065 114 307 168 1789 216 2199 1858 84 540 209 431 695 50 858 503 Hop . | . . . . . . . . . . . . . . . . . . . . . . . . . . . . . Pick Up 196 | 9 19 24 3 1 . 9 16 1 8 22 . 13 2 2 1 . 22 1 13 11 . 5 . 5 2 . 4 3 Fast Attach 134 | 4 9 5 1 . 1 . 12 . . 6 . 9 7 3 2 2 12 . 7 22 . 3 3 6 4 . 9 7 Attach 113 | 2 5 6 3 . . 3 1 . . 17 . 9 3 1 . . 12 . 4 12 . 2 5 6 5 . 6 11 Detach 45 | . . 1 . . . . . . . 4 . 3 2 1 . . 3 . 3 8 . . 2 4 5 . 5 4 Swap 262 | . 6 21 4 . 3 15 27 . 15 23 . 23 6 4 3 1 25 5 35 18 1 5 . 2 1 . 16 3 Drop 179 | . 9 30 3 . . 8 29 1 8 20 . 15 5 6 2 . 9 2 12 7 . . . 2 4 . 4 3 Fire 333 | 8 59 88 35 . 16 20 28 . . 44 . . 6 13 . . 7 . 3 1 . . . . . . 4 1 Melee 686 | . . 4 . . . . 12 1 . 61 . 134 49 . 16 6 94 6 46 119 . 20 28 1 22 4 33 30 Ram 2 | . . . . . . . . . . . . . . . . . . . . . . . . . . . . 2 Kick . | . . . . . . . . . . . . . . . . . . . . . . . . . . . . . Crush 24 | . 3 . 7 . 5 3 5 . . 1 . . . . . . . . . . . . . . . . . . Escape Stasis 55 | . . . . . . . . . . . . 22 20 . . 13 . . . . . . . . . . . . Rewire 127 | . . . . . . . . . . . . . 127 . . . . . . . . . . . . . . . Trap . | . . . . . . . . . . . . . . . . . . . . . . . . . . . . . Miscellaneous . | . . . . . . . . . . . . . . . . . . . . . . . . . . . . . Route ------- -11/Scrapyard -10/Materials (discovered 5 exits: *Mat x3 / *Min / Sub) -9/Materials (discovered 4 exits: *Mat x3 / *Min) -9/Mines (discovered 4 exits: *Mat x2 / *Exi / [*Zio]) -9/Exiles -8/Mines (discovered 2 exits: *Mat x2) -8/Materials -8/Storage (discovered 2 exits: *Fac / *Rec) -8/Recycling (discovered 2 exits: Fac / *Scr) -8/Scraptown (discovered 2 exits: *Fac x2) -6/Factory (discovered 6 exits: *Fac x2 / Low x2 / Ext x2) -6/Waste -6/Factory (discovered 6 exits: *Fac x2 / *Low x2 / *Ext x2) -6/Extension (discovered 3 exits: *Fac x2 / *Cet) -6/Cetus -6/Archives (discovered 3 exits: *Fac / *Hub x2) -6/Hub_04(d) -5/Factory (discovered 4 exits: *Fac x2 / *Upp x2) -5/Waste -5/Factory (discovered 6 exits: *Fac x4 / *Upp x2) -4/Factory (discovered 2 exits: *Res / *Upp) -4/Waste -4/Factory (discovered 2 exits: *Upp / Gar) -4/Garrison -4/Factory -4/Upper Caves -4/Upper Caves -3/Research -2/Research (discovered 3 exits: [*Acc] / Qua x2) History --------- Turn | Location | Event 5 | -11/Scrapyard | Discovered new exit (range 15) 151 | -11/Scrapyard | Entered Materials 302 | -10/Materials | Build established: Mutant 434 | -10/Materials | Discovered new exit (range 9) 677 | -10/Materials | Discovered new exit (range 9) 735 | -10/Materials | Discovered new exit (range 10) 787 | -10/Materials | Identified exit to Materials 787 | -10/Materials | Identified exit to Subcaves 787 | -10/Materials | Learned location of 1 exit from Materials 806 | -10/Materials | Core integrity fell below 50% 842 | -10/Materials | Lost 7 parts (2p2n1u2w) 912 | -10/Materials | Learned 2 Mines zone layouts 962 | -10/Materials | Identified exit to Mines 1003 | -10/Materials | Learned location of Mines (-9) 1127 | -10/Materials | Learned Materials stockpile data 1180 | -10/Materials | Learned Materials stockpile data 1318 | -10/Materials | Entered another Materials area 1318 | -9/Materials | Evolved 2 slots: Propulsion x1, Utility x1 1319 | -9/Materials | Identified exit to Materials 2121 | -9/Materials | Build established: Scavenger-Mutant 2377 | -9/Materials | Identified exit to Mines 2411 | -9/Materials | Repaired Lgt. Treads 2438 | -9/Materials | Repaired Lgt. Treads 2542 | -9/Materials | Discovered exit to Materials (range 10) 2770 | -9/Materials | Learned 2 Storage zone layouts 2837 | -9/Materials | Learned location of Zion (-7) 2893 | -9/Materials | Learned 2 Storage zone layouts 2937 | -9/Materials | Learned location of 1 exit from Recycling 2973 | -9/Materials | Learned location of 1 exit from Recycling 2997 | -9/Materials | Learned location of 1 exit from Storage 3010 | -9/Materials | Learned 4 Recycling zone layouts 3150 | -9/Materials | Entered Mines 3151 | -9/Mines | A Derelict revealed a hidden shortcut to a safe place 3152 | -9/Mines | Identified exit to Exiles 3191 | -9/Mines | Met a Derelict bent on vengeance 3547 | -9/Mines | Build established: Mutant 3556 | -9/Mines | Core integrity fell below 50% 3625 | -9/Mines | Lost 4 parts (2n1u1w) 3921 | -9/Mines | Found a hidden stash of uninstalled traps 4187 | -9/Mines | Deemed a non-threat by the Exiles lab entrance 4194 | -9/Mines | Entered Exiles 4233 | -9/Exiles | Met 8R-AWN 4260 | -9/Exiles | Met EX-HEX 4322 | -9/Exiles | Met EX-DEC 4424 | -9/Exiles | Discovered new exit (range 11) 4440 | -9/Exiles | Entered Mines 5034 | -8/Mines | Discovered exit to Materials (range 8) 5233 | -8/Mines | Entered Materials 5233 | -8/Materials | Evolved 2 slots: Utility x1, Weapon x1 5234 | -8/Materials | Identified exit to Storage 5547 | -8/Materials | Build established: Tank 5736 | -8/Materials | Entered Storage 5737 | -8/Storage | Identified exit to Recycling 5738 | -8/Storage | Identified exit to Factory 6010 | -8/Storage | Repaired Broken Arm. Treads 6215 | -8/Storage | Met 01-MTF 6266 | -8/Storage | Build established: Scavenger-Tank 6439 | -8/Storage | Garrison activated, responded to threat 6962 | -8/Storage | Build established: Mutant 7220 | -8/Storage | Entered Recycling 7220 | -8/Recycling | Accompanied by 2 allies (01-MTF) 7221 | -8/Recycling | Identified exit to Scraptown 7221 | -8/Recycling | Identified exit to Factory 7385 | -8/Recycling | Scanned before Scraplab entrance 7444 | -8/Recycling | Entered Scraplab 7458 | -8/Recycling | Entered Scraptown 7458 | -8/Scraptown | System corruption cleaned by C-Scrubber 7769 | -8/Scraptown | Discovered exit to Factory (range 13) 7875 | -8/Scraptown | Visited Cyclists 7923 | -8/Scraptown | Visited SPCMW 7941 | -8/Scraptown | Visited IN-MT5's Study 8281 | -8/Scraptown | Visited Fellowship of the Rings 8317 | -8/Scraptown | Visited Bundlers 8551 | -8/Scraptown | Visited The Evicted 8612 | -8/Scraptown | Visited TADAMA 8659 | -8/Scraptown | Visited UFD Registry 8659 | -8/Scraptown | Registered with UFD as "Gunshell" 8713 | -8/Scraptown | Visited Scrapoid Research Area 8756 | -8/Scraptown | Visited Analyses Database 8812 | -8/Scraptown | Visited Curators Association 9058 | -8/Scraptown | Visited Junk Cannon Lab 9101 | -8/Scraptown | Visited Derelict Rescue Squad 9114 | -8/Scraptown | Found DRS Beacon 9156 | -8/Scraptown | Visited DA-N13 Charitable Foundation 9176 | -8/Scraptown | Found DCF Scrap (29 items) 9256 | -8/Scraptown | Visited Chapter 10 9319 | -8/Scraptown | Visited Abandonware Association 9355 | -8/Scraptown | Learned abandonware demo "SHUTEYE.EXE" 9420 | -8/Scraptown | Visited Science Guys 9640 | -8/Scraptown | Entered Cyclist Reading Room 9875 | -8/Scraptown | Met Optimus 9875 | -8/Scraptown | Accepted into 0bPrime 9960 | -8/Scraptown | Discovered exit to Factory (range 3) 9965 | -8/Scraptown | Entered Factory 9965 | -6/Factory | Evolved 4 slots: Propulsion x1, Utility x3 9984 | -6/Factory | Discovered new exit (range 4) 9991 | -6/Factory | Identified exit to Factory 10507 | -6/Factory | Loaded intel: 8 recycling unit locations 10537 | -6/Factory | Learned location of Protoforge (-2) 10688 | -6/Factory | Lost 6 parts (1p2n2u1w) 10737 | -6/Factory | Lost 4 parts (1n2u1w) 11075 | -6/Factory | Build established: Scout 11287 | -6/Factory | Discovered exit to Factory (range 16) 11344 | -6/Factory | Repaired Adv. Sensor Array 11459 | -6/Factory | Identified exit to Lower Caves 11459 | -6/Factory | Identified exit to Extension 11617 | -6/Factory | Manually triggered Chute Trap 11617 | -6/Factory | Sucked down chute 11617 | -6/Factory | Entered Waste 11618 | -6/Waste | Met a frightened Derelict 11626 | -6/Waste | Spotted C-40 Crusher 11626 | -6/Waste | Spotted C-40 Crusher 11627 | -6/Waste | Spotted C-40 Crusher 11632 | -6/Waste | EMP discharged 11632 | -6/Waste | System corruption reached 10% 11632 | -6/Waste | Spotted C-40 Crusher 11639 | -6/Waste | Spotted C-40 Crusher 11640 | -6/Waste | Spotted C-40 Crusher 11641 | -6/Waste | Discovered new exit (range 13) 11646 | -6/Waste | Identified exit to Factory 11647 | -6/Waste | Entered Factory 11784 | -6/Factory | Fabricated Cmb. Airjet (x2) 11868 | -6/Factory | Fabricated Cmb. Airjet? 12028 | -6/Factory | Discovered exit to Factory (range 16) 12083 | -6/Factory | Loaded intel: 8 recycling unit locations 12307 | -6/Factory | Discovered exit to Factory (range 10) 12321 | -6/Factory | Lost 5 parts (4u1w) 12347 | -6/Factory | Search patrols dispatched 12545 | -6/Factory | Core integrity fell below 50% 12979 | -6/Factory | Build established: Ninja 13314 | -6/Factory | Build established: Scout 13534 | -6/Factory | Crushed by falling debris 13540 | -6/Factory | Crushed by falling debris 13571 | -6/Factory | Lost 5 parts (1p1n3u) 13742 | -6/Factory | Fabricated Cmb. Airjet (x2) 13889 | -6/Factory | Core integrity fell below 20% 13940 | -6/Factory | Entered Extension 14200 | -6/Extension | Rescued a captive Derelict 14214 | -6/Extension | Rescued a captive Derelict 14251 | -6/Extension | Scrapoids reinforcements arrived? 14251 | -6/Extension | Rescued a captive Derelict 14265 | -6/Extension | Rescued a captive Derelict 14357 | -6/Extension | Rescued a captive Derelict 14368 | -6/Extension | Scrapoids reinforcements arrived? 14385 | -6/Extension | Energy Cycler disabled 14385 | -6/Extension | Rescued a captive Derelict 14386 | -6/Extension | Rescued a captive Derelict 14386 | -6/Extension | Rescued a captive Derelict 14386 | -6/Extension | Rescued a captive Derelict 14387 | -6/Extension | Rescued a captive Derelict 14390 | -6/Extension | Rescued a captive Derelict 14391 | -6/Extension | Rescued A7 14392 | -6/Extension | Rescued a captive Derelict 14477 | -6/Extension | Spotted B-75 Beast 14558 | -6/Extension | Build established: Commander-Scout 14602 | -6/Extension | Discovered exit to Factory (range 21) 14604 | -6/Extension | Spotted B-75 Beast 14607 | -6/Extension | Allies destroyed B-75 Beast 14617 | -6/Extension | Destroyed B-75 Beast 14978 | -6/Extension | Discovered exit to Factory (range 10) 14982 | -6/Extension | Discovered new exit (range 6) 14990 | -6/Extension | First assault squad dispatched 15033 | -6/Extension | Lost 3 allies 15192 | -6/Extension | Entered Cetus 15192 | -6/Cetus | Accompanied by 11 allies (A7) 15197 | -6/Cetus | Acquired a Cetus Manufacturing Module code from A7 15202 | -6/Cetus | Spotted Cetus Guard 15202 | -6/Cetus | Spotted Cetus Guard 15202 | -6/Cetus | Spotted Cetus Guard 15212 | -6/Cetus | Spotted Cetus Guard 15215 | -6/Cetus | Allies destroyed Cetus Guard 15222 | -6/Cetus | Allies destroyed Cetus Guard 15223 | -6/Cetus | Allies destroyed Cetus Guard 15227 | -6/Cetus | Allies destroyed Cetus Guard 15279 | -6/Cetus | Started Cetus Manufacturing Module 15285 | -6/Cetus | Discovered new exit (range 22) 15304 | -6/Cetus | Manufactured an Enhanced Grunt 15329 | -6/Cetus | Manufactured an Enhanced Grunt 15354 | -6/Cetus | Manufactured an Enhanced Grunt 15379 | -6/Cetus | Manufactured an Enhanced Grunt 15404 | -6/Cetus | Manufactured an Enhanced Grunt 15453 | -6/Cetus | Entered Archives 15453 | -6/Archives | Accompanied by 14 allies (A7) 15501 | -6/Archives | Discovered exit to Factory (range 13) 15528 | -6/Archives | Discovered new exit (range 22) 15554 | -6/Archives | Discovered new exit (range 21) 15786 | -6/Archives | Build established: Commander-Mutant 15793 | -6/Archives | Entered Hub_04(d) 15793 | -6/Hub_04(d) | Accompanied by 11 allies 15863 | -6/Hub_04(d) | Discovered exit to Factory (range 9) 15933 | -6/Hub_04(d) | Network Hub disabled 15933 | -6/Hub_04(d) | Network Hub disabled 15941 | -6/Hub_04(d) | Spotted Lightning 15941 | -6/Hub_04(d) | Spotted Lightning 15941 | -6/Hub_04(d) | Spotted Lightning 15945 | -6/Hub_04(d) | Allies destroyed Lightning 15948 | -6/Hub_04(d) | Entered Factory 15948 | -5/Factory | Accompanied by 4 allies 15948 | -5/Factory | Evolved 2 slots: Utility x2 15978 | -5/Factory | Lost 5 allies 16014 | -5/Factory | Loaded intel: 8 recycling unit locations 16042 | -5/Factory | Discovered new exit (range 14) 16212 | -5/Factory | Fabricated Cmb. Airjet (x2) 16331 | -5/Factory | Build established: Scavenger-Mutant 16429 | -5/Factory | Identified exit to Upper Caves 16429 | -5/Factory | Central database locked down 16599 | -5/Factory | Repaired Broken Ripper 16626 | -5/Factory | Repaired Cmb. Airjet 16817 | -5/Factory | Repaired Centrium Medium Armor Plating 16858 | -5/Factory | Build established: Hacker-Scout 16872 | -5/Factory | Repaired Centrium Medium Armor Plating 16898 | -5/Factory | Repaired Power Sword 16915 | -5/Factory | System corruption reached 10% 17147 | -5/Factory | Discovered new exit (range 17) 17321 | -5/Factory | Repaired Cmb. Airjet 17412 | -5/Factory | Repaired Cld. Gravmag System? 17484 | -5/Factory | Spotted B-75 Beast 17493 | -5/Factory | Build established: Hacker-Mutant 17575 | -5/Factory | Repaired Centrium Medium Armor Plating 17685 | -5/Factory | Repaired Centrium Medium Armor Plating 17753 | -5/Factory | Sucked down chute 17753 | -5/Factory | Entered Waste 17754 | -5/Waste | Joined by Warlord forces that had cleared the area 17893 | -5/Waste | A Compactor rumbled back to life 17895 | -5/Waste | Spotted C-40 Crusher 17896 | -5/Waste | Allies destroyed C-40 Crusher 17917 | -5/Waste | Discovered new exit (range 12) 17978 | -5/Waste | Entered Factory 17978 | -5/Factory | Accompanied by 20 allies 18218 | -5/Factory | Repaired Broken Cmb. Antigrav System 18248 | -5/Factory | Loaded intel: 8 recycling unit locations 18317 | -5/Factory | Build established: Hacker-Scout 18448 | -5/Factory | Lost 5 allies 18464 | -5/Factory | Fabricated Enh. Force Lance (x2) 18495 | -5/Factory | Fabricated Adv. Hacking Suite (x1) 18693 | -5/Factory | Lost 4 allies 18834 | -5/Factory | Lost 3 allies 19020 | -5/Factory | Discovered new exit (range 6) 19024 | -5/Factory | Identified exit to Factory 19281 | -5/Factory | Build established: Machinist-Scout 19342 | -5/Factory | Fabricated Cmb. Antigrav System (x2) 19997 | -5/Factory | Entered another Factory area 19997 | -4/Factory | Evolved 2 slots: Utility x2 20021 | -4/Factory | Found Prototype Processor 20021 | -4/Factory | Identified Exp. Signal Interpreter 20297 | -4/Factory | Fabricated Cmb. Antigrav System (x2) 20852 | -4/Factory | Destroyed 13 combat bots 20870 | -4/Factory | Loaded intel: 8 recycling unit locations 21069 | -4/Factory | Discovered new exit (range 16) 21104 | -4/Factory | Identified exit to Upper Caves 21166 | -4/Factory | System corruption reached 10% 21178 | -4/Factory | Garrison activated, responded to threat 21211 | -4/Factory | Lost 4 parts (1p2u1w) 21411 | -4/Factory | Lost 3 parts (2u1w) 21436 | -4/Factory | Discovered new exit (range 13) 21497 | -4/Factory | Repaired Centrium Medium Armor Plating 21565 | -4/Factory | Scrapoid reinforcements arrived 21628 | -4/Factory | Lost 5 allies 21746 | -4/Factory | Repaired Centrium Medium Armor Plating? 21897 | -4/Factory | Repaired Centrium Medium Armor Plating? 21906 | -4/Factory | Build established: Machinist-Mutant 21958 | -4/Factory | Repaired Cmb. Airjet 22085 | -4/Factory | Spotted B-86 Titan 22101 | -4/Factory | Core integrity fell below 50% 22138 | -4/Factory | Manually triggered Chute Trap 22138 | -4/Factory | Sucked down chute 22138 | -4/Factory | Entered Waste 22142 | -4/Waste | Spotted C-40 Crusher 22142 | -4/Waste | Spotted C-40 Crusher 22153 | -4/Waste | EMP discharged 22153 | -4/Waste | System corruption reached 30% 22163 | -4/Waste | Spotted C-40 Crusher 22166 | -4/Waste | Spotted C-40 Crusher 22175 | -4/Waste | Spotted C-40 Crusher 22183 | -4/Waste | Spotted C-40 Crusher 22188 | -4/Waste | Discovered new exit (range 22) 22202 | -4/Waste | Identified exit to Factory 22203 | -4/Waste | Entered Factory 22263 | -4/Factory | Discovered exit to Upper Caves (range 8) 22423 | -4/Factory | Repaired Cmb. Antigrav System 22458 | -4/Factory | Repaired Cmb. Antigrav System 22494 | -4/Factory | Repaired Cmb. Antigrav System 22790 | -4/Factory | Identified exit to Garrison 22790 | -4/Factory | Entered Garrison 22994 | -4/Garrison | Triggered checkpoint 22999 | -4/Garrison | Triggered checkpoint 23049 | -4/Garrison | Core integrity fell below 20% 23083 | -4/Garrison | Discovered new exit (range 11) 23090 | -4/Garrison | Identified exit to Factory 23090 | -4/Garrison | Entered Factory 23091 | -4/Factory | Lost 4 parts (2n2u) 23195 | -4/Factory | Repaired Broken Cmb. Antigrav System 23239 | -4/Factory | Fabricated Enh. Force Lance (x2) 23270 | -4/Factory | Repaired Enh. Force Lance 23317 | -4/Factory | Repaired Imp. Medium Armor Plating 23391 | -4/Factory | Build established: Scout 23404 | -4/Factory | Discovered exit to Upper Caves (range 13) 23476 | -4/Factory | Entered Upper Caves 23621 | -4/Upper Caves | Spotted B-86 Titan 24193 | -4/Upper Caves | Build established: Machinist-Ninja 24255 | -4/Upper Caves | Discovered new exit (range 8) 24259 | -4/Upper Caves | Identified exit to Upper Caves 24261 | -4/Upper Caves | Entered another Upper Caves area 24263 | -4/Upper Caves | Attracted the attention of an 0b10 checkpoint 24306 | -4/Upper Caves | Discovered new exit (range 5) 24308 | -4/Upper Caves | Identified exit to Research 24309 | -4/Upper Caves | Entered Research 24309 | -3/Research | Evolved 2 slots: Propulsion x1, Utility x1 24647 | -3/Research | Found Prototype Launcher 24647 | -3/Research | Identified Tactical Quantum Warhead 25060 | -3/Research | Build established: Hacker-Scout 25123 | -3/Research | Discovered new exit (range 3) 25131 | -3/Research | Identified exit to Research 25131 | -3/Research | Entered another Research area 25131 | -2/Research | Evolved 2 slots: Power x1, Utility x1 25249 | -2/Research | Identified exit to Quarantine 25287 | -2/Research | Loaded intel: 5 recycling unit locations 25495 | -2/Research | Lost 8 parts (1p1n5u1w) 25512 | -2/Research | Discovered new exit (range 11) 25572 | -2/Research | Released all parts (17) 25583 | -2/Research | Core integrity fell below 50% 25592 | -2/Research | Core integrity fell below 20% 25594 | -2/Research | Destroyed by H-88 Terminator with Heavy Machine Gun Last Messages --------------- 25581_ Slug penetrates Wall. 25581_ Tactical Quantum Warhead destroyed. 25582_ U-05 Engineer builds a Wall. 25583_ Slug penetrates Wall. 25583_ Penetrated by Slug. 25584_ Slug penetrates Earth. 25587_ Slammed into G-73 Enforcer. 25591_ Slammed into P-80 Master. 25591_ Destabilizing: System corrupted (+2). 25591_ Penetrated by Slug. 25592_ U-05 Engineer lays Concrete. 25592_ Slug penetrates Wall. 25592_ Penetrated by Slug. 25592_ Slug penetrates Wall. 25593_ The unstable cave ceiling collapses. 25593_ U-05 Engineer lays Concrete. 25593_ Slug penetrates Earth. 25594_ U-05 Engineer lays Concrete. 25594_ Slug penetrates Earth. 25594_ Penetrated by Slug. Map ----- +----------------------------------------------------+ | # #????????????????????????? ??????????? | | # #????????????????????????? ??????????? | | #### ####???????????????????????# #??????????? | | # #T #############???????????# #??????????? | | ! + ############# #??????????? | | # + # #??????????? | | #### #??##" = # #??????????? | | ## ########+##### #####"# # #??????????? | | ## #????# # # ## # #??????????? | | ## ##?### # # ## + +??????????? | | # #?#"" "" # # ## # #??????????? | | + " #?#"" "" # # ######### ##?????????? | | # #?#"" S" + + #?= ] # ! #?????????? | | ## ##?#S """ ### #? # #?????????? | | ##### #??#"" """ #?# #? ] u + T #?????????? | | ????# #??#"" """ #?# #? h # #?????????? | | ????# #??#"" #?# # u # ] #?????????? | | ????# #??### ]#?###### ] ### ###?????????? | | ????# #????# #?### # c # #???????????? | | ????# #???############ ## ! ## #???????????? | | ????# #???# h Y g u #???????????? | | ????# #???# == hg R ! # #???????????? | | ????# #???# == gg=!= # #???????????? | | ????# #???# = !hh h R # #???????????? | | ????# #???????###### # # #???????????? | | #####+######???????##pc @ # # #???????????? | | #????????# #c ## # #???????????? | | #????????# # ### # #???????????? | | #????????# ### #?# # #???????????? | | #???????## #####?######## #???????????? | | !!/ # #### #??????????## #???????????? | | ! / # / #???????????# #???????????? | | ! / # #### #??????????## #???????????? | | # ??????#####??????????## #???????????? | | #???????????????????????# #???????????? | | #??????????????????????? ???????????? | | #??????????????????????? !???????????? | | ! #??????????????????????? ???????????? | | ############???????????????????????# #???????????? | | ???????????????????????????????????# #???????????? | | ???????????????????????????????????# #???????????? | | ???????????????????????????????????# #???????????? | | ???????????????????????????????????# #???????????? | | ???????????????????????????????????? ????????????? | | ???????????????????????????????????? ????????????? | | ???????????????????????????????????? ????????????? | | ???????????????????????????????????? ????????????? | | ???????????????????????????????????? ????????????? | | ???????????????????????????????????? ????????????? | | ???????????????????????????????????? ????????????? | +----------------------------------------------------+ Best States ------------- Heat Dissipation 68 Energy Generation 29 Energy Capacity 350 Matter Stores 300 Matter Capacity 300 Sight Range 22 Robot Scan Range 16 Terrain Scan Range 20 Terrain Scan Density 10 ECM Strength 1 Jamming Range 14 Cloak Strength 2 Additional Mass Support 9 Armor Coverage 825 Resistance: TH 15 Resistance: EX 50 Propulsion Shielding 66 Utility Shielding 66 Weapon Shielding 66 Weapon Cycling 20 Phase Shifting 5 Evasion (%) 63 Targeting Accuracy 8 Melee Accuracy 16 Target Analysis 6 Recoil Reduction 3 Offensive Hacking 34 Defensive Hacking 24 Authchip Count 1 Item Schematics ----------------- Cmb. Airjet | -6/Factory | Hacked Lrg. Storage Unit | -6/Factory | Hacked Enh. Force Lance | -5/Factory | Hacked Adv. Hacking Suite | -5/Factory | Hacked Cmb. Antigrav System | -5/Factory | Scanalyzed Robot Schematics ------------------ None Fabricated ------------ Cmb. Airjet | x2 | -6/Factory | Authchip Cmb. Airjet | x2 | -6/Factory | Authchip Cmb. Airjet | x2 | -6/Factory Cmb. Airjet | x2 | -5/Factory | Authchip Enh. Force Lance | x2 | -5/Factory | Authchip Adv. Hacking Suite | x1 | -5/Factory Cmb. Antigrav System | x2 | -5/Factory Cmb. Antigrav System | x2 | -4/Factory Enh. Force Lance | x2 | -4/Factory | Authchip Repaired ---------- Lgt. Treads | 72% | -9/Materials Lgt. Treads | 72% | -9/Materials Arm. Treads | 5% | -8/Storage | Broken Adv. Sensor Array | 12% | -6/Factory Ripper | 18% | -5/Factory | Broken Cmb. Airjet | 33% | -5/Factory Centrium Medium Armor Plating | 29% | -5/Factory Centrium Medium Armor Plating | 38% | -5/Factory Power Sword | 16% | -5/Factory Cmb. Airjet | 20% | -5/Factory Cld. Gravmag System | 38% | -5/Factory Centrium Medium Armor Plating | 51% | -5/Factory Centrium Medium Armor Plating | 68% | -5/Factory Cmb. Antigrav System | 13% | -5/Factory | Broken Centrium Medium Armor Plating | 16% | -4/Factory Centrium Medium Armor Plating | 3% | -4/Factory Centrium Medium Armor Plating | 14% | -4/Factory Cmb. Airjet | 8% | -4/Factory Cmb. Antigrav System | 11% | -4/Factory Cmb. Antigrav System | 18% | -4/Factory Cmb. Antigrav System | 21% | -4/Factory Cmb. Antigrav System | 1% | -4/Factory | Broken Enh. Force Lance | 3% | -4/Factory Imp. Medium Armor Plating | 55% | -4/Factory Alien Tech Used ----------------- None Achievements -------------- None Challenges ------------ None Game ------ Seed SubatomicTowerPenetrator Manual? 0 Play Time 05:07:35 Cumulative 335.9 hours Start 2025.05.24 @ 00:35:07 End 2025.05.24 @ 19:42:00 Sessions 4 Manual Loads 0 Difficulty Rogue Special Mode None Game No. 214 Rogue 214 Adventurer 0 Explorer 0 Win Type - Total 6 Types 6/0/0/0/0/0/0/0/0/0 Lore% 74 Gallery% 72 Achievement% 66 Wizard Run 0 Options --------- Layout 0 ASCII 0 Keyboard 1 Movement Numpad Keybinds 0 Fullscreen 2 Font 18/SmallcapsGlow Map View 76x50 Zoom Use 0% Tactical HUD 1 Map Filters NONE Filters NONE Steam 1 RUN: 19f5a087-ae2e-4db3-a800-9cf2b35554ce